bitfinex/quotes_SOLUSD_20251031
["timestamp","ask_amount","ask_price","bid_price","bid_amount"]
[1761910661445,0.67,186.79,186.77,8.4577775]
[1761910662076,4.6483218,186.79,186.77,8.4577775]
[1761910662364,0.67,186.79,186.77,8.4577775]
[1761910662570,0.67,186.78,186.77,8.4577775]
[1761910664977,0.67,186.78,186.77,5.35417893]
[1761910665273,0.67,186.78,186.75,83.292]
[1761910665274,0.67,186.78,186.75,91.75007937]
[1761910666351,4.65030874,186.78,186.75,71.15807937]
[1761910666549,3.98030874,186.77,186.75,71.15807937]
[1761910666785,4.65030874,186.77,186.75,71.15807937]
[1761910666997,0.67,186.76,186.75,71.15807937]
[1761910672193,3.98432961,186.76,186.75,71.15807937]
[1761910672879,3.98432961,186.76,186.75,74.26167794]
[1761910673071,0.67,186.79,186.75,87.64855879]
[1761910673277,3.9844295,186.78,186.75,84.54496022]
[1761910673588,0.67,186.82,186.75,84.54496022]
[1761910673795,3.98512149,186.81,186.75,84.54496022]
[1761910673978,3.98512149,186.8,186.75,84.54496022]
[1761910674285,0.67,186.82,186.75,84.54496022]
[1761910674286,3.98512149,186.79,186.75,88.53008171]
[1761910674489,0.67,186.82,186.78,3.10359857]
[1761910674676,3.98685614,186.81,186.75,88.53008171]
[1761910674865,3.98685614,186.8,186.75,88.53008171]
[1761910675059,0.67,186.82,186.75,88.53008171]
[1761910675388,3.98709135,186.81,186.75,88.53008171]
[1761910675686,3.98709135,186.8,186.75,88.53008171]
[1761910675859,0.67,186.82,186.79,3.10359857]
[1761910676062,0.67,186.82,186.81,3.10359857]
[1761910676262,4.65656226,186.82,186.81,3.10359857]
[1761910677287,4.65656226,186.82,186.81,8.45663106]
[1761910680294,3.98656226,186.82,186.81,8.45663106]
[1761910680586,3.98656226,186.82,186.81,71.15663106]
[1761910680793,4.70656226,186.82,186.81,71.15663106]
[1761910682274,0.72,186.82,186.81,71.15663106]
[1761910683898,0.72,186.84,186.81,71.15663106]
[1761910684087,0.72,186.84,186.81,68.05303249]
[1761910684088,3.98371148,186.83,186.81,68.05303249]
[1761910684391,0.72,186.85,186.81,68.05303249]
[1761910685192,0.72,186.85,186.84,8.45577155]
[1761910685381,0.72,186.85,186.84,3.10359857]
[1761910686066,4.70238056,186.85,186.83,3.10359857]
[1761910686269,0.72,186.85,186.83,3.10359857]
[1761910686484,0.72,186.84,186.83,8.45582881]
[1761910687086,3.98159392,186.85,186.83,8.45582881]
[1761910687392,4.70159392,186.85,186.84,3.10359857]
[1761910687594,3.98159392,186.88,186.84,3.10359857]
[1761910687897,3.98159392,186.87,186.84,3.10359857]
[1761910688087,3.98159392,186.86,186.84,3.10359857]
[1761910688280,3.98159392,186.85,186.83,5.35223024]
[1761910688486,0.72,186.89,186.83,5.35223024]
[1761910688702,3.98128006,186.88,186.83,68.05223024]
[1761910689008,3.98128006,186.87,186.83,68.05223024]
[1761910689198,3.98128006,186.86,186.83,68.05223024]
[1761910689402,3.98128006,186.85,186.83,68.05223024]
[1761910689603,0.72,186.87,186.83,68.05223024]
[1761910689781,3.98111397,186.86,186.83,68.05223024]
[1761910689980,3.98111397,186.85,186.83,68.05223024]
[1761910690280,0.72,186.89,186.83,68.05223024]
[1761910690475,3.98138215,186.88,186.84,8.45550898]
[1761910690694,3.98138215,186.87,186.84,8.45550898]
[1761910690893,3.98138215,186.86,186.84,8.45550898]
[1761910691095,3.98138215,186.85,186.84,8.45550898]
[1761910691289,0.72,186.89,186.84,71.15550898]
[1761910691494,4.70086787,186.88,186.84,71.15550898]
[1761910691675,3.98086787,186.87,186.85,3.10359857]
[1761910691877,0.72,186.87,186.85,3.10359857]
[1761910692180,0.72,186.86,186.85,3.10359857]
[1761910692781,0.72,186.86,186.85,8.45548511]
[1761910692975,0.72,186.87,186.85,8.45548511]
[1761910693178,0.72,186.86,186.85,5.35188654]
[1761910693982,4.70131244,186.89,186.85,18.73160289]
[1761910694191,0.72,186.89,186.85,81.43160289]
[1761910694484,3.9813545,186.89,186.88,3.10359857]
[1761910694709,3.9813545,186.89,186.87,3.10359857]
[1761910694881,0.1,186.9,186.86,3.10359857]
[1761910694882,4.7013545,186.88,186.86,3.10359857]
[1761910695203,0.72,186.88,186.86,3.10359857]
[1761910695506,0.72,186.87,186.86,8.45508596]
[1761910696789,4.70143175,186.89,186.86,8.45508596]
[1761910696987,3.98143175,186.88,186.87,3.10359857]
[1761910697206,0.72,186.88,186.87,3.10359857]
[1761910698887,0.68,186.88,186.86,71.15508596]
[1761910699088,4.66069389,186.88,186.86,62.7]
[1761910699290,0.68,186.88,186.86,62.7]
[1761910699507,0.68,186.87,186.86,62.7]
[1761910700493,4.66212276,186.87,186.86,62.7]
[1761910700699,7.76572133,186.87,186.86,61.98]
[1761910700900,4.66212276,186.87,186.86,61.98]
[1761910701405,13.11703507,186.87,186.86,61.98]
[1761910701731,13.11703507,186.87,186.82,3.10359857]
[1761910701913,3.10359857,186.85,186.8,3.10359857]
[1761910702093,3.98212276,186.84,186.8,3.10359857]
[1761910702288,3.98212276,186.83,186.8,3.10359857]
[1761910702506,3.98212276,186.82,186.79,5.35357003]
[1761910702704,3.98364847,186.81,186.79,5.35357003]
[1761910703011,0.68,186.81,186.79,8.4571686]
[1761910706390,3.10359857,186.84,186.79,8.4571686]
[1761910706596,4.66462273,186.83,186.8,3.10359857]
[1761910706899,3.98462273,186.82,186.81,3.10359857]
[1761910707605,4.66462273,186.82,186.81,3.10359857]
[1761910707809,4.66462273,186.82,186.8,3.10359857]
[1761910708018,4.66462273,186.81,186.8,3.10359857]
[1761910709417,4.66462273,186.81,186.8,8.45691762]
[1761910709623,3.98462273,186.81,186.8,8.45691762]
[1761910710598,3.9873607,186.81,186.8,8.45691762]
[1761910712826,3.9873607,186.81,186.8,70.43691762]
[1761910714934,7.77095927,186.81,186.76,61.98]
[1761910715113,3.9873607,186.8,186.78,3.10359857]
[1761910715430,3.9873607,186.79,186.77,0.68]
[1761910715600,21.272,186.84,186.77,0.68]
[1761910715801,4.67084006,186.83,186.77,0.68]
[1761910716029,3.99084006,186.82,186.77,0.68]
[1761910716209,3.99084006,186.81,186.77,0.68]
[1761910716531,3.99084006,186.8,186.78,5.35389227]
[1761910716831,0.68,186.83,186.78,5.35389227]
[1761910717005,3.99160935,186.82,186.78,6.03389227]
[1761910717207,3.99160935,186.81,186.78,6.03389227]
[1761910717517,3.99160935,186.8,186.78,6.03389227]
[1761910717715,0.68,186.83,186.8,5.35331905]
[1761910717914,3.99243601,186.82,186.8,5.35331905]
[1761910718228,3.99243601,186.81,186.8,5.35331905]
[1761910718810,3.99243601,186.81,186.8,0.68]
[1761910719018,3.99243601,186.81,186.79,7.3382857]
[1761910719220,3.99243601,186.8,186.79,8.0182857]
[1761910719824,3.99243601,186.8,186.79,69.9982857]
[1761910719998,0.68,186.85,186.79,83.38229983]
[1761910720203,3.99155266,186.84,186.81,1.98468005]
[1761910720422,3.99155266,186.83,186.8,1.98468005]
[1761910720606,3.99155266,186.82,186.8,1.98468005]
[1761910720814,3.99155266,186.81,186.8,7.33788652]
[1761910721906,3.99155266,186.81,186.8,5.35320647]
[1761910722211,3.99155266,186.81,186.8,7.33788652]
[1761910725628,3.99155266,186.81,186.8,1.98468005]
[1761910725825,4.67155266,186.81,186.8,1.98468005]
[1761910726933,3.99155266,186.81,186.8,1.98468005]
[1761910727440,3.99155266,186.81,186.8,7.3379991]
[1761910727823,3.99155266,186.81,186.8,5.35331905]
[1761910728025,3.99155266,186.81,186.8,7.3379991]
[1761910730336,3.99155266,186.81,186.8,1.98468005]
[1761910730513,3.99155266,186.81,186.8,63.96468005]
[1761910730714,4.67155266,186.81,186.8,61.98]
[1761910731235,4.67158999,186.81,186.8,61.98]
[1761910732116,6.65627004,186.81,186.8,61.98]
[1761910733215,4.67158999,186.81,186.8,61.98]
[1761910736341,4.67158999,186.81,186.79,5.3535182]
[1761910736538,3.99158999,186.8,186.79,5.3535182]
[1761910739134,3.99158999,186.8,186.78,69.31851891]
[1761910739326,3.99158999,186.79,186.78,69.31851891]
[1761910740560,3.99158999,186.79,186.78,70.01851891]
[1761910741947,3.99158999,186.79,186.78,67.33383886]
[1761910742245,3.99158999,186.79,186.78,70.01851891]
[1761910743228,3.99158999,186.79,186.78,69.31851891]
[1761910744632,3.99158999,186.79,186.78,70.01851891]
[1761910745120,3.99158999,186.79,186.78,74.0101089]
[1761910745521,0.66,186.85,186.78,87.39483959]
[1761910745718,4.00154899,186.84,186.82,1.98468005]
[1761910745922,4.00154899,186.83,186.82,63.96468005]
[1761910746651,4.00154899,186.83,186.82,69.317426]
[1761910747134,4.00154899,186.83,186.82,67.33274595]
[1761910747329,4.66154899,186.83,186.82,67.33274595]
[1761910747951,4.66154899,186.83,186.82,61.98]
[1761910748846,10.23867047,186.83,186.82,61.98]
[1761910749435,15.59112992,186.83,186.82,61.98]
[1761910751036,15.59112992,186.83,186.78,67.33384004]
[1761910751251,10.23867047,186.82,186.78,67.33384004]
[1761910751457,7.59399042,186.81,186.78,67.33384004]
[1761910751658,4.00154899,186.8,186.78,67.33384004]
[1761910751846,4.00154899,186.79,186.78,67.33384004]
[1761910752043,4.66154899,186.79,186.78,67.33384004]
[1761910753638,4.66154899,186.79,186.78,61.98]
[1761910754273,4.66154899,186.79,186.76,5.35445991]
[1761910754274,4.66154899,186.79,186.76,61.98]
[1761910754436,4.66154899,186.78,186.76,61.98]
[1761910754638,4.00154899,186.77,186.76,61.98]
[1761910754956,4.66154899,186.77,186.76,61.98]
[1761910758378,4.66154899,186.77,186.74,5.35500785]
[1761910758578,4.71154899,186.76,186.74,5.35500785]
[1761910758880,4.00154899,186.75,186.74,5.35500785]
[1761910759086,4.71154899,186.75,186.74,5.35500785]
[1761910760878,4.71154899,186.75,186.73,67.33529576]
[1761910761179,4.00154899,186.74,186.73,69.31997581]
[1761910763365,3.9932212,186.74,186.73,69.31997581]
[1761910763558,3.9932212,186.74,186.73,67.33529576]
[1761910763779,3.9932212,186.74,186.73,69.31997581]
[1761910765792,3.9921548,186.74,186.73,69.31997581]
[1761910767196,0.71,186.76,186.73,69.31997581]
[1761910767489,3.99190857,186.75,186.74,7.33971914]
[1761910768497,3.99190857,186.75,186.74,69.31971914]
[1761910768791,0.67,186.78,186.74,69.98971914]
[1761910769096,3.99210304,186.77,186.75,0.67]
[1761910769280,3.99210304,186.76,186.75,0.67]
[1761910770076,3.99210304,186.76,186.75,2.65468005]
[1761910770697,3.99210304,186.76,186.75,8.00943239]
[1761910771785,3.99210304,186.76,186.75,11.33153543]
[1761910771989,3.99210304,186.76,186.75,12.00153543]
[1761910774481,3.99210304,186.76,186.75,73.98153543]
[1761910775496,3.99210304,186.76,186.75,75.09822911]
[1761910776480,3.99210304,186.76,186.75,67.33475234]
[1761910776802,3.99210304,186.76,186.75,75.09822911]
[1761910778313,0.67,186.79,186.75,75.09822911]
[1761910778479,3.99415359,186.78,186.77,3.10137373]
[1761910779199,4.66415359,186.78,186.77,3.10137373]
[1761910780305,4.66415359,186.78,186.77,65.08137373]
[1761910780485,4.66415359,186.78,186.77,70.43555266]
[1761910783410,3.99415359,186.78,186.77,70.43555266]
[1761910789511,3.99415359,186.78,186.77,71.10555266]
[1761910790108,3.99415359,186.78,186.77,70.43555266]
[1761910799802,3.99415359,186.78,186.77,67.33417893]
[1761910800125,4.68415359,186.78,186.77,70.43555266]
[1761910802531,3.99415359,186.78,186.77,70.43555266]
[1761910806313,3.99415359,186.78,186.77,71.09555266]
[1761910806524,3.99415359,186.78,186.77,70.43555266]
[1761910808135,83.52981234,187.64,186.77,70.43555266]
[1761910808136,3.5948305,186.86,186.8,20.592]
[1761910808342,0.69,186.84,186.8,82.572]
[1761910809206,0.69,186.84,186.81,5.35303249]
[1761910809450,0.69,186.84,186.83,3.10137373]
[1761910810956,0.69,186.86,186.83,8.45383318]
[1761910811249,0.69,186.86,186.84,3.10137373]
[1761910812035,0.69,186.86,186.83,70.43383318]
[1761910813151,0.69,186.86,186.84,3.10137373]
[1761910815681,0.69,186.86,186.83,70.43383318]
[1761910817841,4.3748305,186.9,186.85,3.10137373]
[1761910818041,0.68,186.89,186.88,3.10137373]
[1761910818261,0.68,186.89,186.87,3.10137373]
[1761910818866,0.1,186.9,186.87,3.10137373]
[1761910819069,0.1,186.9,186.89,3.10137373]
[1761910819366,0.1,186.9,186.89,8.4521148]
[1761910819965,4.09827061,186.9,186.89,9.1621148]
[1761910820354,4.09827061,186.9,186.89,8.4521148]
[1761910820666,4.09827061,186.9,186.88,8.45237607]
[1761910820667,4.77827061,186.9,186.88,8.45237607]
[1761910820877,4.67827061,186.89,186.88,5.35100234]
[1761910821070,4.67827061,186.89,186.88,8.45237607]
[1761910821275,3.99827061,186.89,186.88,8.45237607]
[1761910822266,4.67827061,186.89,186.88,8.45237607]
[1761910823159,3.99827061,186.89,186.88,8.45237607]
[1761910824346,3.99827061,186.89,186.88,70.43237607]
[1761910825680,4.67827061,186.89,186.88,70.43237607]
[1761910826781,0.68,186.89,186.88,70.43237607]
[1761910826978,0.68,186.89,186.88,67.33100234]
[1761910827184,0.68,186.89,186.88,70.43237607]
[1761910828884,0.1,186.9,186.88,70.43237607]
[1761910829088,0.8,186.9,186.89,3.10137373]
[1761910829777,0.1,186.9,186.89,3.10137373]
[1761910830095,0.1,186.9,186.89,65.77137373]
[1761910830272,0.1,186.9,186.89,67.91585838]
[1761910830595,0.1,186.9,186.89,73.26659945]
[1761910833395,0.1,186.9,186.89,72.57659945]
[1761910833604,0.1,186.9,186.89,70.4321148]
[1761910834074,0.1,186.9,186.89,71.1221148]
[1761910834792,0.1,186.9,186.89,73.26659945]
[1761910836363,0.1,186.9,186.89,73.80167355]
[1761910836561,0.1,186.92,186.9,61.97999999]
[1761910836793,0.1,186.92,186.91,3.63639058]
[1761910836997,0.1,186.92,186.91,4.32639058]
[1761910837170,0.1,186.92,186.91,6.47053037]
[1761910837493,0.1,186.92,186.91,5.3499787]
[1761910838171,0.1,186.92,186.91,72.68014722]
[1761910838571,1e-08,186.92,186.91,90.67658629]
[1761910838773,0.1,186.93,186.91,80.60343546]
[1761910839072,0.1,186.93,186.92,31.1861103]
[1761910839286,0.1,186.93,186.92,22.57282206]
[1761910839802,0.8,186.93,186.92,22.57282206]
[1761910839996,0.8,186.93,186.92,1.98082206]
[1761910840186,0.8,186.93,186.92,7.33070436]
[1761910842580,0.8,186.93,186.91,61.97999999]
[1761910844476,2.78082206,186.93,186.9,67.33021551]
[1761910844883,0.7,186.92,186.9,67.33021551]
[1761910848705,0.7,186.92,186.9,61.97999999]
[1761910850618,0.7,186.92,186.89,67.33070345]
[1761910852411,0.7,186.92,186.89,61.97999999]
[1761910853018,0.7,186.92,186.89,67.33065553]
[1761910855004,0.7,186.92,186.89,69.31147759]
[1761910855211,0.8,186.93,186.9,1.98082206]
[1761910856223,0.8,186.93,186.91,5.35016853]
[1761910856523,3.99515114,186.92,186.91,67.33016852]
[1761910857097,4.69515114,186.92,186.91,67.33016852]
[1761910857909,3.99515114,186.92,186.91,67.33016852]
[1761910858818,4.69515114,186.92,186.91,67.33016852]
[1761910863615,4.69515114,186.92,186.91,61.97999999]
[1761910865327,3.99515114,186.92,186.91,67.33016852]
[1761910865636,4.67515114,186.92,186.91,69.31099058]
[1761910865806,4.67515114,186.92,186.91,67.33016852]
[1761910866005,4.67515114,186.92,186.91,61.97999999]
[1761910871416,3.99515114,186.92,186.91,69.31099058]
[1761910872722,3.99515114,186.92,186.91,69.97099058]
[1761910873263,0.1,186.93,186.91,69.97099058]
[1761910873547,0.1,186.93,186.92,2.64082206]
[1761910873710,0.1,186.93,186.92,64.62082205]
[1761910874112,0.1,186.93,186.92,69.97070435]
[1761910875138,0.1,186.96,186.95,20.592]
[1761910875345,0.1,186.96,186.95,85.21282205]
[1761910876115,0.1,186.96,186.95,90.56184585]
[1761910877512,0.1,186.96,186.95,88.58102379]
[1761910877917,0.1,186.96,186.95,90.56184585]
[1761910892859,0.1,186.98,186.97,70.45411883]
[1761910893047,1e-08,186.99,186.98,1.98082206]
[1761910893243,1e-08,186.99,186.98,12.76397289]
[1761910893452,0.1,187.0,186.98,23.28282206]
[1761910893746,0.1,187.0,186.99,3.22561001]
[1761910893958,0.1,187.0,186.98,83.18199999]
[1761910894143,0.1,187.0,186.99,1.98082206]
[1761910894337,0.1,187.0,186.99,3.22561001]
[1761910894748,0.1,187.0,186.99,8.57348957]
[1761910897469,0.1,187.0,186.99,70.45348956]
[1761910899372,0.1,187.0,186.99,71.56539962]
[1761910901261,0.1,187.0,186.99,70.85539962]
[1761910903371,0.1,187.01,187.0,67.12759357]
[1761910903573,0.1,187.01,187.0,70.22032569]
[1761910906274,0.1,187.01,187.0,70.93032569]
[1761910908674,0.1,187.01,187.0,70.22032569]
[1761910913072,0.1,187.01,187.0,67.12759357]
[1761910913374,0.1,187.01,187.0,70.22032569]
[1761910916758,0.1,187.01,187.0,8.4403257]
[1761910917774,0.1,187.01,187.0,5.34759358]
[1761910917978,0.1,187.01,187.0,8.4403257]
[1761910920173,0.1,187.01,187.0,10.58343159]
[1761910920885,1e-08,187.01,187.0,20.65658242]
[1761910921073,1e-08,187.01,187.0,87.10931454]
[1761910922682,1e-08,187.01,187.0,84.01658242]
[1761910923978,1e-08,187.01,187.0,83.35658242]
[1761910926793,0.72,187.03,187.02,68.04702169]
[1761910926980,0.1,187.04,187.02,74.23248593]
[1761910927293,0.82,187.04,187.03,3.09273212]
[1761910929088,0.82,187.04,187.03,8.43946793]
[1761910929472,0.82,187.04,187.03,71.6741415]
[1761910929473,0.1,187.04,187.03,71.6741415]
[1761910929686,1e-08,187.04,187.03,82.40729233]
[1761910929886,1e-08,187.04,187.03,83.88982426]
[1761910931493,1e-08,187.04,187.03,81.74729233]
[1761910932493,1e-08,187.04,187.03,82.40729233]
[1761910932689,0.1,187.09,187.06,61.77999998]
[1761910932891,0.1,187.09,187.08,3.09273212]
[1761910933189,4.10263449,187.09,187.08,3.09273212]
[1761910933895,4.10263449,187.09,187.08,8.43803894]
[1761910934699,4.82263449,187.09,187.08,8.43803894]
[1761910938702,4.82263449,187.09,187.08,70.21803892]
[1761910943807,4.10263449,187.09,187.08,70.21803892]
[1761910944106,4.10263449,187.09,187.08,70.87803892]
[1761910944402,4.10263449,187.09,187.08,70.21803892]
[1761910946379,0.76,187.09,187.08,70.21803892]
[1761910946811,4.76298004,187.09,187.08,70.21803892]
[1761910947028,0.76,187.09,187.08,67.1253068]
[1761910947311,4.76314959,187.09,187.08,70.21803892]
[1761910951086,4.10314959,187.09,187.08,70.21803892]
[1761910951512,0.1,187.09,187.08,70.87803892]
[1761910951695,0.1,187.09,187.08,92.0045696]
[1761910951899,1e-08,187.09,187.08,92.0045696]
[1761910952084,0.1,187.11,187.09,9.78882769]
[1761910952288,0.1,187.14,187.11,30.66515083]
[1761910952496,0.1,187.14,187.13,8.4366107]
[1761910952716,0.1,187.14,187.13,70.21661067]
[1761910952912,0.1,187.14,187.13,70.87661067]
[1761910961317,0.1,187.14,187.13,69.76021638]
[1761910962032,0.66,187.17,187.16,5.34302201]
[1761910962227,0.66,187.17,187.16,7.31935984]
[1761910962398,0.1,187.19,187.16,82.91691484]
[1761910962603,2.14115568,187.25,187.19,20.592]
[1761910962818,3.98977373,187.24,187.2,7.90535132]
[1761910963012,0.66,187.25,187.21,1.1941595]
[1761910963816,4.64660652,187.25,187.21,1.1941595]
[1761910964016,0.66,187.25,187.24,1.97633783]
[1761910964232,0.66,187.25,187.24,7.31707698]
[1761910964426,3.98660652,187.26,187.24,7.31707698]
[1761910964732,3.98660652,187.25,187.24,5.34073915]
[1761910964909,4.64660652,187.27,187.24,5.34073915]
[1761910965109,3.98660652,187.26,187.24,5.34073915]
[1761910965312,0.66,187.26,187.24,5.34073915]
[1761910965515,0.66,187.25,187.24,5.34073915]
[1761910965711,0.66,187.25,187.24,7.31707698]
[1761910966934,0.1,187.28,187.24,21.86299878]
[1761910966935,0.76,187.28,187.24,21.86299878]
[1761910967135,0.76,187.28,187.27,1.97633783]
[1761910968132,0.76,187.28,187.27,7.31622142]
[1761910968525,0.76,187.28,187.27,1.97633783]
[1761910968827,0.1,187.28,187.27,22.56833783]
[1761910969030,0.1,187.28,187.27,85.34232615]
[1761910969230,0.1,187.28,187.27,95.41547698]
[1761910970325,1e-08,187.28,187.27,108.66071189]
[1761910970520,1e-08,187.28,187.27,108.12672354]
[1761910970732,1e-08,187.28,187.27,108.66071189]
[1761910971346,0.1,187.3,187.29,19.95483998]
[1761910971649,0.1,187.3,187.29,20.48877131]
[1761910971932,3.22892793,187.35,187.34,20.592]
[1761910972115,3.22892793,187.35,187.34,89.48622613]
[1761910972314,3.22892793,187.35,187.34,90.14622613]
[1761910973311,3.22892793,187.35,187.34,100.21937696]
[1761910973526,3.22892793,187.35,187.34,100.75316579]
[1761910974838,3.22892793,187.35,187.34,88.70367713]
[1761910975039,3.22892793,187.35,187.34,89.48622613]
[1761910975731,3.22892793,187.35,187.34,90.14622613]
[1761910975939,3.22892793,187.35,187.34,89.48622613]
[1761910976122,3.88892793,187.35,187.34,89.48622613]
[1761910976837,3.88892793,187.35,187.34,87.5098883]
[1761910977039,3.22892793,187.35,187.34,89.48622613]
[1761910977242,3.88892793,187.35,187.34,89.48622613]
[1761910977537,3.22892793,187.35,187.34,89.48622613]
[1761910977745,3.88892793,187.35,187.32,62.11384579]
[1761910977915,0.66,187.34,187.32,66.91831001]
[1761910978116,3.88892793,187.35,187.33,1.97633783]
[1761910978363,3.88892793,187.35,187.34,1.97633783]
[1761910978548,3.22892793,187.35,187.34,7.31422616]
[1761910978715,3.22892793,187.35,187.34,1.97633783]
[1761910979232,3.93892793,187.35,187.34,1.97633783]
[1761910980038,3.93892793,187.35,187.34,7.31422616]
[1761910981252,3.93892793,187.35,187.31,5.33874325]
[1761910981454,3.22892793,187.35,187.31,5.33874325]
[1761910981748,3.22892793,187.35,187.34,1.97633783]
[1761910982041,3.93892793,187.35,187.34,1.97633783]
[1761910983247,3.93892793,187.35,187.34,7.31422616]
[1761910983448,3.93892793,187.35,187.34,68.89422613]
[1761910983746,3.93892793,187.35,187.34,61.57999997]
[1761910985455,3.93892793,187.35,187.34,63.5563378]
[1761910986155,3.93892793,187.35,187.34,61.57999997]
[1761910987464,3.93892793,187.35,187.3,20.592]
[1761910987465,5.91526576,187.35,187.3,66.9190215]
[1761910987638,0.71,187.34,187.3,68.89535933]
[1761910988041,0.71,187.34,187.31,1.97633783]
[1761910988951,0.71,187.34,187.3,68.89535933]
[1761910989159,1.97633783,187.33,187.3,61.57999997]
[1761910989469,1.97633783,187.32,187.3,61.57999997]
[1761910989671,0.71,187.31,187.3,61.57999997]
[1761910990177,0.71,187.31,187.3,66.91902826]
[1761910990754,0.71,187.31,187.3,61.57999997]
[1761910993780,6.04874325,187.31,187.3,61.57999997]
[1761910995482,8.02508108,187.31,187.3,61.57999997]
[1761910995860,11.98301289,187.31,187.3,61.57999997]
[1761910997162,11.98301289,187.31,187.25,61.57999997]
[1761910997360,7.31565119,187.29,187.25,61.57999997]
[1761910997865,0.71,187.28,187.25,61.57999997]
[1761910998372,0.71,187.28,187.25,68.89678087]
[1761910998971,0.71,187.28,187.25,63.5563378]
[1761911000675,0.71,187.28,187.25,68.89674721]
[1761911002790,0.71,187.28,187.25,69.60674721]
[1761911003369,0.71,187.28,187.25,68.89674721]
[1761911005685,0.71,187.28,187.25,63.5563378]
[1761911006488,0.71,187.28,187.25,68.89676813]
[1761911008372,0.71,187.28,187.25,61.57999997]
[1761911011189,0.71,187.28,187.25,66.92039222]
[1761911011391,0.71,187.28,187.25,68.89673005]
[1761911012370,0.71,187.28,187.25,63.5563378]
[1761911013274,0.71,187.28,187.25,68.89671622]
[1761911014887,0.71,187.28,187.25,69.60671622]
[1761911015091,0.71,187.28,187.25,63.5563378]
[1761911016297,0.71,187.28,187.25,61.57999997]
[1761911016482,0.71,187.28,187.25,66.92043689]
[1761911018399,0.71,187.28,187.25,68.89677472]
[1761911019794,3.98780132,187.27,187.25,61.57999997]
[1761911019985,1.97633783,187.27,187.25,61.57999997]
[1761911020312,0.71,187.26,187.25,61.57999997]
[1761911020805,4.69891163,187.26,187.25,61.57999997]
[1761911020996,6.67524946,187.26,187.25,61.57999997]
[1761911022308,12.0154182,187.26,187.25,61.57999997]
[1761911023010,12.0154182,187.26,187.21,61.57999997]
[1761911023317,3.08771544,187.24,187.21,61.57999997]
[1761911023809,0.71,187.23,187.21,61.57999997]
[1761911024614,3.79771544,187.23,187.21,61.57999997]
[1761911025120,0.71,187.22,187.21,61.57999997]
[1761911025317,3.08771544,187.24,187.21,61.57999997]
[1761911025618,0.71,187.23,187.21,61.57999997]
[1761911025990,0.71,187.24,187.21,61.57999997]
[1761911026310,16.05866766,187.28,187.23,3.08771544]
[1761911026311,0.71,187.28,187.23,3.08771544]
[1761911026609,3.99096728,187.27,187.24,3.79771544]
[1761911026789,3.99038345,187.26,187.25,0.71]
[1761911028304,3.99038345,187.26,187.24,8.42838821]
[1761911028518,0.71,187.28,187.25,3.08771544]
[1761911028702,3.99219518,187.27,187.24,9.13838821]
[1761911028891,3.99219518,187.26,187.24,9.13838821]
[1761911029223,0.71,187.28,187.24,9.13838821]
[1761911029514,3.99321334,187.27,187.24,70.71838818]
[1761911029807,3.99321334,187.26,187.24,70.71838818]
[1761911030019,8.42696682,187.29,187.24,70.00838818]
[1761911030227,4.70321334,187.28,187.24,70.71838818]
[1761911030514,3.99321334,187.27,187.24,70.71838818]
[1761911030714,3.99321334,187.26,187.24,70.71838818]
[1761911030947,0.71,187.26,187.24,61.57999997]
[1761911031105,0.71,187.25,187.24,61.57999997]
[1761911031304,4.70576622,187.25,187.24,61.57999997]
[1761911032013,4.70576665,187.25,187.24,61.57999997]
[1761911035337,4.70576665,187.25,187.22,61.57999997]
[1761911035539,3.99576665,187.24,187.22,61.57999997]
[1761911035839,3.99576665,187.23,187.22,66.92130965]
[1761911036014,3.99576665,187.23,187.22,70.71902509]
[1761911036539,3.99576665,187.23,187.22,67.63130965]
[1761911036834,25.19313822,187.29,187.22,70.71902509]
[1761911037048,4.00045261,187.28,187.23,3.79771544]
[1761911037228,4.00045261,187.27,187.23,3.79771544]
[1761911037538,4.00045261,187.26,187.24,0.71]
[1761911037740,4.00045261,187.25,187.24,9.13845459]
[1761911038038,4.00045261,187.25,187.24,70.71845456]
[1761911038545,4.00045261,187.25,187.24,67.63073912]
[1761911038937,4.00045261,187.25,187.24,70.71845456]
[1761911041254,4.00257607,187.25,187.24,84.07030245]
[1761911042562,4.31135654,187.31,187.24,84.07030245]
[1761911042750,4.00227796,187.3,187.28,5.33959846]
[1761911042949,4.00227796,187.29,187.28,66.91959843]
[1761911043556,4.00227796,187.29,187.28,67.59959843]
[1761911043758,4.00227796,187.29,187.28,70.68731387]